[Event "Early-Titled-Tuesday-Blitz-February-20-2024"]
[Site "Chess.com"]
[Date "2024.02.20"]
[Round "11"]
[White "Huragan007"]
[Black "chessdjw"]
[Result "0-1"]
[WhiteElo "2607"]
[BlackElo "2755"]
[TimeControl "180+1"]
[EndTime "10:09:06 PST"]
[Termination "chessdjw won by resignation"]

1. e4 {[%clk 0:03:00.9]} 1... c5 {[%clk 0:02:59.5]} 2. b3 {[%clk 0:03:00.8]}
2... g6 {[%clk 0:02:57.6]} 3. Bb2 {[%clk 0:02:59.6]} 3... Nf6 {[%clk 0:02:58.1]}
4. Nc3 {[%clk 0:02:59.6]} 4... Bg7 {[%clk 0:02:57]} 5. Nd5 {[%clk 0:02:59.9]}
5... O-O {[%clk 0:02:56.6]} 6. Nxf6+ {[%clk 0:02:59.4]} 6... Bxf6 {[%clk
0:02:54.5]} 7. Bxf6 {[%clk 0:02:59.1]} 7... exf6 {[%clk 0:02:55.4]} 8. Bc4
{[%clk 0:02:59.5]} 8... Re8 {[%clk 0:02:53.2]} 9. Bd5 {[%clk 0:02:42.6]} 9...
Na6 {[%clk 0:02:48.1]} 10. Ne2 {[%clk 0:02:37.4]} 10... Nb4 {[%clk 0:02:44.8]}
11. O-O {[%clk 0:02:35.1]} 11... d6 {[%clk 0:02:40.7]} 12. d3 {[%clk 0:02:28.3]}
12... Nxd5 {[%clk 0:02:36.1]} 13. exd5 {[%clk 0:02:28.5]} 13... Bg4 {[%clk
0:02:36.7]} 14. f3 {[%clk 0:02:28.1]} 14... Bd7 {[%clk 0:02:35.9]} 15. Ng3
{[%clk 0:02:23.8]} 15... f5 {[%clk 0:02:35]} 16. Qd2 {[%clk 0:02:22.8]} 16...
Qf6 {[%clk 0:02:32.7]} 17. c4 {[%clk 0:02:12.8]} 17... Qd4+ {[%clk 0:02:21.5]}
18. Kh1 {[%clk 0:02:11.8]} 18... Re3 {[%clk 0:02:21.8]} 19. Rad1 {[%clk
0:02:06.6]} 19... Rae8 {[%clk 0:02:21.2]} 20. Rfe1 {[%clk 0:01:56.1]} 20... h5
{[%clk 0:01:30.8]} 21. Rxe3 {[%clk 0:01:36]} 21... Rxe3 {[%clk 0:01:25.7]} 22.
Nf1 {[%clk 0:01:13.6]} 22... Re8 {[%clk 0:01:12.6]} 23. f4 {[%clk 0:01:12.9]}
23... h4 {[%clk 0:01:03.9]} 24. g3 {[%clk 0:01:10.1]} 24... h3 {[%clk
0:01:01.7]} 25. Rc1 {[%clk 0:00:52.6]} 25... b5 {[%clk 0:00:59.3]} 26. Rc2
{[%clk 0:00:38.2]} 26... a5 {[%clk 0:00:54.8]} 27. Rb2 {[%clk 0:00:18.2]} 27...
a4 {[%clk 0:00:51.8]} 28. Rc2 {[%clk 0:00:17.6]} 28... b4 {[%clk 0:00:41.2]} 29.
Qd1 {[%clk 0:00:12.2]} 29... axb3 {[%clk 0:00:36.6]} 30. axb3 {[%clk 0:00:13.1]}
30... Ra8 {[%clk 0:00:36.7]} 31. Qe1 {[%clk 0:00:08.2]} 31... Ra1 {[%clk
0:00:25.6]} 32. Qe2 {[%clk 0:00:04.5]} 32... Rb1 {[%clk 0:00:24.4]} 33. Rd2
{[%clk 0:00:02.9]} 33... Rxb3 {[%clk 0:00:18.2]} 34. Qe7 {[%clk 0:00:03.2]}
34... Rb1 {[%clk 0:00:17.7]} 35. Qe2 {[%clk 0:00:01.4]} 35... b3 {[%clk
0:00:18.1]} 36. Rd1 {[%clk 0:00:01.1]} 36... Rxd1 {[%clk 0:00:17.5]} 37. Qxd1
{[%clk 0:00:02]} 37... b2 {[%clk 0:00:18]} 38. Nd2 {[%clk 0:00:02.7]} 38... Qxd3
{[%clk 0:00:17.9]} 39. Kg1 {[%clk 0:00:03.2]} 39... Qxd2 {[%clk 0:00:17.6]} 40.
Qxd2 {[%clk 0:00:03.5]} 40... b1=Q+ {[%clk 0:00:18.2]} 41. Kf2 {[%clk
0:00:04.4]} 41... Qe4 {[%clk 0:00:18.9]} 42. Qb2 {[%clk 0:00:04.4]} 42... Qg2+
{[%clk 0:00:19.2]} 0-1

[Event "Early-Titled-Tuesday-Blitz-February-20-2024"]
[Site "Chess.com"]
[Date "2024.02.20"]
[Round "11"]
[White "Ezov"]
[Black "cthake"]
[Result "1-0"]
[WhiteElo "2170"]
[BlackElo "1781"]
[TimeControl "180+1"]
[EndTime "10:09:08 PST"]
[Termination "Ezov won by checkmate"]

1. d4 {[%clk 0:03:00.9]} 1... b6 {[%clk 0:02:57.5]} 2. Nc3 {[%clk 0:03:00]} 2...
e6 {[%clk 0:02:55]} 3. e4 {[%clk 0:03:00.5]} 3... Bb7 {[%clk 0:02:54.9]} 4. f3
{[%clk 0:03:00.1]} 4... Bb4 {[%clk 0:02:49.8]} 5. Be3 {[%clk 0:02:59.1]} 5...
Qh4+ {[%clk 0:02:47.8]} 6. Bf2 {[%clk 0:02:56.8]} 6... Qg5 {[%clk 0:02:34.8]} 7.
Nh3 {[%clk 0:02:54.9]} 7... Qe7 {[%clk 0:02:27.2]} 8. Bd3 {[%clk 0:02:43.3]}
8... d5 {[%clk 0:02:25.1]} 9. e5 {[%clk 0:02:42.4]} 9... c5 {[%clk 0:02:22.3]}
10. O-O {[%clk 0:02:29.2]} 10... cxd4 {[%clk 0:02:19.9]} 11. Ne2 {[%clk
0:02:28.2]} 11... Nc6 {[%clk 0:02:16.7]} 12. f4 {[%clk 0:02:24.4]} 12... g6
{[%clk 0:02:06.2]} 13. Nxd4 {[%clk 0:02:21.8]} 13... Nxd4 {[%clk 0:02:02]} 14.
Bxd4 {[%clk 0:02:22.7]} 14... Bc5 {[%clk 0:02:01.8]} 15. c3 {[%clk 0:02:20.6]}
15... a6 {[%clk 0:01:40.4]} 16. Qb3 {[%clk 0:02:08.7]} 16... Qd7 {[%clk
0:01:29.2]} 17. Nf2 {[%clk 0:01:52.4]} 17... Ne7 {[%clk 0:01:29.4]} 18. Ng4
{[%clk 0:01:50.7]} 18... Ng8 {[%clk 0:01:22.5]} 19. a4 {[%clk 0:01:36.2]} 19...
h5 {[%clk 0:01:22.4]} 20. Ne3 {[%clk 0:01:35]} 20... Ne7 {[%clk 0:01:19.4]} 21.
a5 {[%clk 0:01:34.4]} 21... Bxd4 {[%clk 0:01:10.3]} 22. cxd4 {[%clk 0:01:35.3]}
22... b5 {[%clk 0:01:10.6]} 23. Rac1 {[%clk 0:01:27.8]} 23... O-O {[%clk
0:01:07]} 24. g4 {[%clk 0:01:21]} 24... hxg4 {[%clk 0:01:02]} 25. Nxg4 {[%clk
0:01:21.9]} 25... Kg7 {[%clk 0:00:51.1]} 26. Nf6 {[%clk 0:01:17.3]} 26... Qd8
{[%clk 0:00:51.1]} 27. Qb4 {[%clk 0:00:39.1]} 27... Nc6 {[%clk 0:00:47.9]} 28.
Qc5 {[%clk 0:00:36.4]} 28... Nxa5 {[%clk 0:00:45]} 29. Qc3 {[%clk 0:00:28]}
29... Nc4 {[%clk 0:00:44.4]} 30. Bxc4 {[%clk 0:00:27.7]} 30... bxc4 {[%clk
0:00:39.5]} 31. Qg3 {[%clk 0:00:26.3]} 31... Rh8 {[%clk 0:00:37.3]} 32. f5
{[%clk 0:00:25.4]} 32... Bc8 {[%clk 0:00:25.2]} 33. fxg6 {[%clk 0:00:24.1]}
33... fxg6 {[%clk 0:00:24.3]} 34. Kh1 {[%clk 0:00:22.9]} 34... Rb8 {[%clk
0:00:23.4]} 35. Rg1 {[%clk 0:00:23]} 35... Rh6 {[%clk 0:00:21]} 36. Rc2 {[%clk
0:00:21.4]} 36... Qh8 {[%clk 0:00:16.5]} 37. Rcg2 {[%clk 0:00:20.6]} 37... a5
{[%clk 0:00:13.1]} 38. Qg5 {[%clk 0:00:19.9]} 38... Rb7 {[%clk 0:00:09.4]} 39.
Ng4 {[%clk 0:00:19.5]} 39... Rh5 {[%clk 0:00:08.2]} 40. Qf6+ {[%clk 0:00:19.3]}
40... Kh7 {[%clk 0:00:07.9]} 41. Qxh8+ {[%clk 0:00:16.9]} 41... Kxh8 {[%clk
0:00:08]} 42. Nf6 {[%clk 0:00:16.6]} 42... Rh6 {[%clk 0:00:07.2]} 43. Rxg6
{[%clk 0:00:15.4]} 43... Rxg6 {[%clk 0:00:06.4]} 44. Rxg6 {[%clk 0:00:16.3]}
44... Rxb2 {[%clk 0:00:06.2]} 45. Rg8# {[%clk 0:00:16.1]} 1-0

[Event "Early-Titled-Tuesday-Blitz-February-20-2024"]
[Site "Chess.com"]
[Date "2024.02.20"]
[Round "11"]
[White "GM_Huschenbeth"]
[Black "davigator"]
[Result "0-1"]
[WhiteElo "2494"]
[BlackElo "2396"]
[TimeControl "180+1"]
[EndTime "10:09:10 PST"]
[Termination "davigator won on time"]

1. e4 {[%clk 0:03:00.9]} 1... c5 {[%clk 0:02:55.2]} 2. d4 {[%clk 0:03:00.6]}
2... cxd4 {[%clk 0:02:52.5]} 3. c3 {[%clk 0:03:01.2]} 3... Nf6 {[%clk
0:02:51.8]} 4. e5 {[%clk 0:03:01.3]} 4... Nd5 {[%clk 0:02:52.2]} 5. Nf3 {[%clk
0:03:02]} 5... d6 {[%clk 0:02:51.9]} 6. cxd4 {[%clk 0:02:58]} 6... Nc6 {[%clk
0:02:51.1]} 7. Bc4 {[%clk 0:02:58.2]} 7... Nb6 {[%clk 0:02:50.5]} 8. Bb5 {[%clk
0:02:58.5]} 8... d5 {[%clk 0:02:50.8]} 9. h3 {[%clk 0:02:52.5]} 9... e6 {[%clk
0:02:49.2]} 10. O-O {[%clk 0:02:52.3]} 10... Be7 {[%clk 0:02:49.2]} 11. Nc3
{[%clk 0:02:51.6]} 11... Bd7 {[%clk 0:02:49.8]} 12. Bd3 {[%clk 0:02:47.3]} 12...
a6 {[%clk 0:02:48.9]} 13. Qd2 {[%clk 0:02:42]} 13... Rc8 {[%clk 0:02:48.9]} 14.
Qf4 {[%clk 0:02:41.8]} 14... Nb4 {[%clk 0:02:45.8]} 15. Bb1 {[%clk 0:02:41.2]}
15... Nc4 {[%clk 0:02:45.5]} 16. Qg4 {[%clk 0:02:39.9]} 16... Bf8 {[%clk
0:02:38.8]} 17. a3 {[%clk 0:02:36.6]} 17... Nc6 {[%clk 0:02:36.8]} 18. Ng5
{[%clk 0:02:16.8]} 18... h6 {[%clk 0:02:32.2]} 19. Qh5 {[%clk 0:01:50.3]} 19...
hxg5 {[%clk 0:02:25.2]} 20. Qxh8 {[%clk 0:01:51.2]} 20... Nxd4 {[%clk
0:02:24.2]} 21. Ba2 {[%clk 0:01:37.5]} 21... Ne2+ {[%clk 0:02:12.1]} 22. Kh1
{[%clk 0:01:35.2]} 22... Nxc1 {[%clk 0:02:11.8]} 23. Raxc1 {[%clk 0:01:25.9]}
23... Nxb2 {[%clk 0:02:08.8]} 24. f4 {[%clk 0:01:20.3]} 24... Nd3 {[%clk
0:02:04]} 25. fxg5 {[%clk 0:01:10.5]} 25... Qxg5 {[%clk 0:01:58.1]} 26. Rc2
{[%clk 0:00:56.6]} 26... Qxe5 {[%clk 0:01:45.7]} 27. Qg8 {[%clk 0:00:50.9]}
27... f5 {[%clk 0:01:25.6]} 28. Bxd5 {[%clk 0:00:25.9]} 28... Rxc3 {[%clk
0:01:23.8]} 29. Rxc3 {[%clk 0:00:26.1]} 29... Qxc3 {[%clk 0:01:22.5]} 30. Bxe6
{[%clk 0:00:26.6]} 30... Bxe6 {[%clk 0:01:17.5]} 31. Qxe6+ {[%clk 0:00:27.5]}
31... Be7 {[%clk 0:01:17.5]} 32. Qxf5 {[%clk 0:00:24.1]} 32... Qc4 {[%clk
0:00:49.6]} 33. Qg6+ {[%clk 0:00:21.6]} 33... Kd8 {[%clk 0:00:46.4]} 34. Rd1
{[%clk 0:00:21.7]} 34... Bf6 {[%clk 0:00:43.1]} 35. Qxd3+ {[%clk 0:00:14.5]}
35... Qxd3 {[%clk 0:00:43]} 36. Rxd3+ {[%clk 0:00:15.4]} 36... Kc7 {[%clk
0:00:43]} 37. g4 {[%clk 0:00:14.5]} 37... b5 {[%clk 0:00:42.8]} 38. Kg2 {[%clk
0:00:14.9]} 38... Kc6 {[%clk 0:00:39.6]} 39. Kf3 {[%clk 0:00:15.1]} 39... Kc5
{[%clk 0:00:40.2]} 40. Ke4 {[%clk 0:00:15.2]} 40... Kc4 {[%clk 0:00:40.8]} 41.
Rd6 {[%clk 0:00:10.8]} 41... a5 {[%clk 0:00:38.9]} 42. Rb6 {[%clk 0:00:06.5]}
42... b4 {[%clk 0:00:36.9]} 43. axb4 {[%clk 0:00:07.4]} 43... axb4 {[%clk
0:00:37.1]} 44. Kf5 {[%clk 0:00:06.7]} 44... Bd4 {[%clk 0:00:33]} 45. Rb8 {[%clk
0:00:05.9]} 45... b3 {[%clk 0:00:32.9]} 46. h4 {[%clk 0:00:05.6]} 46... b2
{[%clk 0:00:30.1]} 47. Kg6 {[%clk 0:00:04.4]} 47... Kd3 {[%clk 0:00:29.8]} 48.
h5 {[%clk 0:00:04]} 48... Kc2 {[%clk 0:00:29.2]} 49. g5 {[%clk 0:00:02]} 49...
Bc3 {[%clk 0:00:27.3]} 0-1

[Event "Early-Titled-Tuesday-Blitz-February-20-2024"]
[Site "Chess.com"]
[Date "2024.02.20"]
[Round "11"]
[White "Dinosaurio_1975"]
[Black "ajeale2"]
[Result "0-1"]
[WhiteElo "2581"]
[BlackElo "2499"]
[TimeControl "180+1"]
[EndTime "10:09:13 PST"]
[Termination "ajeale2 won by checkmate"]

1. e4 {[%clk 0:03:00.9]} 1... g6 {[%clk 0:02:56.7]} 2. d4 {[%clk 0:03:00.6]}
2... Bg7 {[%clk 0:02:57.2]} 3. Nc3 {[%clk 0:03:01.2]} 3... d6 {[%clk 0:02:57.2]}
4. f4 {[%clk 0:03:01.5]} 4... Nf6 {[%clk 0:02:55.8]} 5. Bd3 {[%clk 0:02:59]}
5... c5 {[%clk 0:02:54.7]} 6. dxc5 {[%clk 0:02:58.4]} 6... dxc5 {[%clk
0:02:54.5]} 7. e5 {[%clk 0:02:56.9]} 7... Ng4 {[%clk 0:02:49.6]} 8. Nf3 {[%clk
0:02:53.9]} 8... O-O {[%clk 0:02:46.2]} 9. O-O {[%clk 0:02:53.3]} 9... Nc6
{[%clk 0:02:44.9]} 10. h3 {[%clk 0:02:50.7]} 10... Nh6 {[%clk 0:02:45]} 11. Be3
{[%clk 0:02:49.2]} 11... Nd4 {[%clk 0:02:44.6]} 12. Ne4 {[%clk 0:02:48.7]} 12...
b6 {[%clk 0:02:44.6]} 13. c3 {[%clk 0:02:45.6]} 13... Nxf3+ {[%clk 0:02:31]} 14.
Rxf3 {[%clk 0:02:31.8]} 14... Bb7 {[%clk 0:02:31.2]} 15. Rf1 {[%clk 0:02:25.7]}
15... Qd5 {[%clk 0:01:53.5]} 16. Qe2 {[%clk 0:02:15.7]} 16... Rad8 {[%clk
0:01:37.8]} 17. Rad1 {[%clk 0:02:12.4]} 17... Qxa2 {[%clk 0:01:35.4]} 18. Bc4
{[%clk 0:01:45.4]} 18... Qa4 {[%clk 0:01:22]} 19. Ng5 {[%clk 0:01:17.3]} 19...
Rxd1 {[%clk 0:01:21.6]} 20. Rxd1 {[%clk 0:01:16]} 20... Nf5 {[%clk 0:01:19.6]}
21. Bf2 {[%clk 0:00:46.3]} 21... h6 {[%clk 0:01:17.5]} 22. Nxf7 {[%clk 0:00:14]}
22... Rxf7 {[%clk 0:01:15.6]} 23. Rd8+ {[%clk 0:00:14.7]} 23... Bf8 {[%clk
0:01:16.1]} 24. Bxf7+ {[%clk 0:00:10]} 24... Kxf7 {[%clk 0:01:15.9]} 25. e6+
{[%clk 0:00:09.8]} 25... Kg8 {[%clk 0:01:11.5]} 26. Qg4 {[%clk 0:00:10.3]} 26...
Kg7 {[%clk 0:00:18.3]} 27. Rxf8 {[%clk 0:00:10.3]} 27... Kxf8 {[%clk 0:00:18.7]}
28. Qxg6 {[%clk 0:00:10.7]} 28... Nd6 {[%clk 0:00:19.1]} 29. Qxh6+ {[%clk
0:00:09.2]} 29... Kg8 {[%clk 0:00:18.3]} 30. Qg6+ {[%clk 0:00:09.3]} 30... Kf8
{[%clk 0:00:16.9]} 31. Qh6+ {[%clk 0:00:06.3]} 31... Kg8 {[%clk 0:00:16.8]} 32.
Bh4 {[%clk 0:00:03.4]} 32... Qe4 {[%clk 0:00:13.1]} 33. Qg5+ {[%clk 0:00:03.5]}
33... Kh7 {[%clk 0:00:11.7]} 34. Qh5+ {[%clk 0:00:03.8]} 34... Kg7 {[%clk
0:00:12.3]} 35. Qg4+ {[%clk 0:00:04.3]} 35... Qg6 {[%clk 0:00:12.6]} 36. Bxe7
{[%clk 0:00:04.5]} 36... Nf5 {[%clk 0:00:08.1]} 37. Bg5 {[%clk 0:00:02.9]} 37...
Ne3 {[%clk 0:00:06.3]} 38. Qe2 {[%clk 0:00:02.3]} 38... Qxe6 {[%clk 0:00:04.4]}
39. f5 {[%clk 0:00:01.9]} 39... Qxf5 {[%clk 0:00:02.2]} 40. Qxe3 {[%clk
0:00:02.6]} 40... Qc2 {[%clk 0:00:02]} 41. Kh2 {[%clk 0:00:03.3]} 41... Qxg2#
{[%clk 0:00:02.2]} 0-1

[Event "Early-Titled-Tuesday-Blitz-February-20-2024"]
[Site "Chess.com"]
[Date "2024.02.20"]
[Round "11"]
[White "JonSnowNW1"]
[Black "DKmirl"]
[Result "1-0"]
[WhiteElo "2506"]
[BlackElo "2331"]
[TimeControl "180+1"]
[EndTime "10:09:13 PST"]
[Termination "JonSnowNW1 won by checkmate"]

1. c4 {[%clk 0:03:00.2]} 1... Nf6 {[%clk 0:02:59]} 2. Nc3 {[%clk 0:02:58.4]}
2... d5 {[%clk 0:02:57.1]} 3. cxd5 {[%clk 0:02:58]} 3... Nxd5 {[%clk 0:02:56]}
4. g3 {[%clk 0:02:58.6]} 4... e5 {[%clk 0:02:54.6]} 5. Bg2 {[%clk 0:02:58.6]}
5... Be6 {[%clk 0:02:53.2]} 6. Nf3 {[%clk 0:02:58.8]} 6... Bd6 {[%clk
0:02:37.7]} 7. O-O {[%clk 0:02:57.5]} 7... O-O {[%clk 0:02:36.3]} 8. d3 {[%clk
0:02:57.1]} 8... c6 {[%clk 0:02:26.1]} 9. Ng5 {[%clk 0:02:47.1]} 9... Nxc3
{[%clk 0:02:14.2]} 10. bxc3 {[%clk 0:02:48]} 10... Bf5 {[%clk 0:02:06.1]} 11.
Rb1 {[%clk 0:02:46.2]} 11... Qc7 {[%clk 0:02:01.8]} 12. Ne4 {[%clk 0:02:41.1]}
12... Be7 {[%clk 0:01:58.8]} 13. Qb3 {[%clk 0:02:36.1]} 13... b6 {[%clk
0:01:55.8]} 14. Ng5 {[%clk 0:02:29.9]} 14... h6 {[%clk 0:01:47.2]} 15. Nf3
{[%clk 0:02:28.1]} 15... Be6 {[%clk 0:01:46.5]} 16. Qa4 {[%clk 0:02:24.6]} 16...
Nd7 {[%clk 0:01:43.2]} 17. c4 {[%clk 0:02:21.6]} 17... Nc5 {[%clk 0:01:42.9]}
18. Qc2 {[%clk 0:02:21.2]} 18... Bf5 {[%clk 0:01:36.4]} 19. e4 {[%clk 0:02:19]}
19... Be6 {[%clk 0:01:25.9]} 20. Bb2 {[%clk 0:02:18.3]} 20... Bf6 {[%clk
0:01:21.3]} 21. Ba3 {[%clk 0:02:14.8]} 21... Be7 {[%clk 0:01:16.2]} 22. Rfd1
{[%clk 0:02:11.6]} 22... Rfd8 {[%clk 0:01:15.9]} 23. Bb2 {[%clk 0:01:58.5]}
23... Bf6 {[%clk 0:00:59.4]} 24. h3 {[%clk 0:01:56.5]} 24... Rd7 {[%clk
0:00:51.5]} 25. d4 {[%clk 0:01:20.8]} 25... exd4 {[%clk 0:00:49.4]} 26. Nxd4
{[%clk 0:01:16.9]} 26... Bxd4 {[%clk 0:00:17.9]} 27. Bxd4 {[%clk 0:01:17.8]}
27... Rad8 {[%clk 0:00:18.3]} 28. Ba1 {[%clk 0:01:14.6]} 28... Rxd1+ {[%clk
0:00:17.7]} 29. Rxd1 {[%clk 0:01:15.2]} 29... f6 {[%clk 0:00:16.4]} 30. Rxd8+
{[%clk 0:01:07.4]} 30... Qxd8 {[%clk 0:00:16.6]} 31. e5 {[%clk 0:01:07.8]} 31...
Qd7 {[%clk 0:00:07.4]} 32. exf6 {[%clk 0:01:05.8]} 32... gxf6 {[%clk 0:00:06.7]}
33. Bxf6 {[%clk 0:01:05.1]} 33... Bf5 {[%clk 0:00:06.7]} 34. Qc1 {[%clk
0:00:58.6]} 34... Qh7 {[%clk 0:00:05]} 35. Qf4 {[%clk 0:00:53.7]} 35... Qg6
{[%clk 0:00:05.1]} 36. Qe5 {[%clk 0:00:43.2]} 36... Be6 {[%clk 0:00:03.6]} 37.
Bxc6 {[%clk 0:00:41.3]} 37... Kf7 {[%clk 0:00:02.8]} 38. Bh4 {[%clk 0:00:37.4]}
38... Qb1+ {[%clk 0:00:02.3]} 39. Kh2 {[%clk 0:00:36.8]} 39... Qf1 {[%clk
0:00:01.9]} 40. Qf6+ {[%clk 0:00:34.1]} 40... Kg8 {[%clk 0:00:02.2]} 41. Qg6+
{[%clk 0:00:32.5]} 41... Kf8 {[%clk 0:00:01.8]} 42. Qxh6+ {[%clk 0:00:32.6]}
42... Kf7 {[%clk 0:00:02]} 43. Qh7+ {[%clk 0:00:29.9]} 43... Kf8 {[%clk
0:00:02.5]} 44. Be7# {[%clk 0:00:30]} 1-0

[Event "Early-Titled-Tuesday-Blitz-February-20-2024"]
[Site "Chess.com"]
[Date "2024.02.20"]
[Round "11"]
[White "BogdanDeac"]
[Black "Kobalia"]
[Result "1-0"]
[WhiteElo "3046"]
[BlackElo "2818"]
[TimeControl "180+1"]
[EndTime "10:09:15 PST"]
[Termination "BogdanDeac won on time"]

1. d4 {[%clk 0:03:00.9]} 1... d5 {[%clk 0:02:59.5]} 2. Nf3 {[%clk 0:03:01.1]}
2... Nf6 {[%clk 0:02:59]} 3. Bf4 {[%clk 0:03:01.7]} 3... c5 {[%clk 0:02:58.9]}
4. e3 {[%clk 0:03:02.3]} 4... Nc6 {[%clk 0:02:59.2]} 5. c3 {[%clk 0:03:02.7]}
5... cxd4 {[%clk 0:02:59.3]} 6. exd4 {[%clk 0:03:03]} 6... Bf5 {[%clk
0:02:58.7]} 7. Qb3 {[%clk 0:02:55.5]} 7... Qb6 {[%clk 0:02:57.3]} 8. Qxb6 {[%clk
0:02:48]} 8... axb6 {[%clk 0:02:57.1]} 9. Na3 {[%clk 0:02:47]} 9... e6 {[%clk
0:02:55.7]} 10. Nb5 {[%clk 0:02:41.4]} 10... Kd7 {[%clk 0:02:55.5]} 11. Bc7
{[%clk 0:02:33.2]} 11... Ra6 {[%clk 0:02:46.1]} 12. Bg3 {[%clk 0:01:52.5]} 12...
Ne4 {[%clk 0:02:38.3]} 13. Bf4 {[%clk 0:01:46.7]} 13... f6 {[%clk 0:02:33.6]}
14. Nd2 {[%clk 0:01:38]} 14... g5 {[%clk 0:02:30.5]} 15. Be3 {[%clk 0:01:34.8]}
15... Ra8 {[%clk 0:02:23]} 16. Nxe4 {[%clk 0:01:24.5]} 16... Bxe4 {[%clk
0:02:22.6]} 17. f3 {[%clk 0:01:24.9]} 17... Bg6 {[%clk 0:02:20.3]} 18. h4 {[%clk
0:01:23.1]} 18... gxh4 {[%clk 0:02:10.2]} 19. Rxh4 {[%clk 0:01:16.1]} 19... Na5
{[%clk 0:02:10.1]} 20. Rd1 {[%clk 0:01:10.1]} 20... Nc4 {[%clk 0:01:32.3]} 21.
Bxc4 {[%clk 0:01:09.1]} 21... dxc4 {[%clk 0:01:33.2]} 22. d5 {[%clk 0:01:09.7]}
22... Rc8 {[%clk 0:00:34.9]} 23. dxe6+ {[%clk 0:00:26.4]} 23... Kxe6 {[%clk
0:00:35.8]} 24. Na7 {[%clk 0:00:26.6]} 24... Ra8 {[%clk 0:00:28.3]} 25. Bxb6
{[%clk 0:00:26.3]} 25... Bd3 {[%clk 0:00:26.3]} 26. Kf2 {[%clk 0:00:26.3]} 26...
Kf7 {[%clk 0:00:24.8]} 27. b3 {[%clk 0:00:23.6]} 27... Be7 {[%clk 0:00:19.8]}
28. bxc4 {[%clk 0:00:19.6]} 28... Bf5 {[%clk 0:00:19.5]} 29. a4 {[%clk
0:00:19.5]} 29... h5 {[%clk 0:00:16]} 30. a5 {[%clk 0:00:17]} 30... Rag8 {[%clk
0:00:14.5]} 31. c5 {[%clk 0:00:10.5]} 31... Rg7 {[%clk 0:00:12.3]} 32. c6 {[%clk
0:00:10.9]} 32... Rhg8 {[%clk 0:00:11.3]} 33. Rh2 {[%clk 0:00:08.9]} 33... bxc6
{[%clk 0:00:10.6]} 34. Nxc6 {[%clk 0:00:08.7]} 34... Rc8 {[%clk 0:00:05.1]} 35.
Nxe7 {[%clk 0:00:07.7]} 35... Kxe7 {[%clk 0:00:06]} 36. Rxh5 {[%clk 0:00:07.9]}
36... Bc2 {[%clk 0:00:03.6]} 37. Re1+ {[%clk 0:00:07.4]} 37... Kf7 {[%clk
0:00:03.7]} 38. Rc5 {[%clk 0:00:07.4]} 38... Rcg8 {[%clk 0:00:02.1]} 39. Rc7+
{[%clk 0:00:07.2]} 39... Kg6 {[%clk 0:00:02.3]} 40. Rxg7+ {[%clk 0:00:07.9]}
40... Rxg7 {[%clk 0:00:02.8]} 41. a6 {[%clk 0:00:08.7]} 1-0

[Event "Early-Titled-Tuesday-Blitz-February-20-2024"]
[Site "Chess.com"]
[Date "2024.02.20"]
[Round "11"]
[White "carokannlover213"]
[Black "Ali_rastbod"]
[Result "0-1"]
[WhiteElo "2834"]
[BlackElo "2708"]
[TimeControl "180+1"]
[EndTime "10:09:15 PST"]
[Termination "Ali_rastbod won on time"]

1. e4 {[%clk 0:02:58.2]} 1... c6 {[%clk 0:02:58.7]} 2. Nf3 {[%clk 0:02:52.8]}
2... d5 {[%clk 0:02:59.6]} 3. Nc3 {[%clk 0:02:53]} 3... g6 {[%clk 0:02:55.6]} 4.
d4 {[%clk 0:02:51.5]} 4... Bg7 {[%clk 0:02:56]} 5. h3 {[%clk 0:02:52.1]} 5...
Nh6 {[%clk 0:02:47.2]} 6. Bf4 {[%clk 0:02:41.6]} 6... f6 {[%clk 0:02:38.5]} 7.
Qd2 {[%clk 0:02:36]} 7... Nf7 {[%clk 0:02:38.5]} 8. exd5 {[%clk 0:02:34.7]} 8...
cxd5 {[%clk 0:02:38.1]} 9. Bb5+ {[%clk 0:02:09.5]} 9... Nc6 {[%clk 0:02:37.9]}
10. O-O {[%clk 0:02:09.2]} 10... O-O {[%clk 0:02:38.5]} 11. Rfe1 {[%clk
0:02:09.7]} 11... g5 {[%clk 0:02:05]} 12. Bg3 {[%clk 0:02:04.2]} 12... Bf5
{[%clk 0:01:57]} 13. Bd3 {[%clk 0:02:03.1]} 13... e6 {[%clk 0:01:50.6]} 14. h4
{[%clk 0:01:45.7]} 14... h6 {[%clk 0:01:44.1]} 15. hxg5 {[%clk 0:01:18.2]} 15...
hxg5 {[%clk 0:01:43.2]} 16. Bxf5 {[%clk 0:01:17.8]} 16... exf5 {[%clk
0:01:43.2]} 17. Qd3 {[%clk 0:01:17.6]} 17... Qd7 {[%clk 0:01:40.2]} 18. Qb5
{[%clk 0:01:02.2]} 18... Rad8 {[%clk 0:01:39.1]} 19. Rad1 {[%clk 0:00:59.3]}
19... a6 {[%clk 0:01:37.1]} 20. Qd3 {[%clk 0:00:52.1]} 20... b5 {[%clk
0:01:35.8]} 21. a3 {[%clk 0:00:48.6]} 21... Na5 {[%clk 0:01:34.1]} 22. Ra1
{[%clk 0:00:48.2]} 22... Rfe8 {[%clk 0:00:56.2]} 23. b3 {[%clk 0:00:35.2]} 23...
Nc6 {[%clk 0:00:51.2]} 24. a4 {[%clk 0:00:31]} 24... b4 {[%clk 0:00:51.2]} 25.
Na2 {[%clk 0:00:25.9]} 25... f4 {[%clk 0:00:50.9]} 26. Bh2 {[%clk 0:00:23.4]}
26... a5 {[%clk 0:00:50.2]} 27. c4 {[%clk 0:00:19.3]} 27... Nd6 {[%clk
0:00:42.1]} 28. cxd5 {[%clk 0:00:15.4]} 28... Ne7 {[%clk 0:00:41.6]} 29. Nd2
{[%clk 0:00:09.3]} 29... Nxd5 {[%clk 0:00:41.4]} 30. Nc4 {[%clk 0:00:09.5]}
30... Nxc4 {[%clk 0:00:37.5]} 31. Qxc4 {[%clk 0:00:10.4]} 31... Rxe1+ {[%clk
0:00:34.5]} 32. Rxe1 {[%clk 0:00:09.9]} 32... Rc8 {[%clk 0:00:34.2]} 33. Qa6
{[%clk 0:00:09.8]} 33... Rc2 {[%clk 0:00:24.4]} 34. Nc1 {[%clk 0:00:10.3]} 34...
Qc6 {[%clk 0:00:20.1]} 35. Qf1 {[%clk 0:00:04.6]} 35... f5 {[%clk 0:00:16.4]}
36. Ne2 {[%clk 0:00:01.9]} 36... Rb2 {[%clk 0:00:11.8]} 37. Rc1 {[%clk
0:00:01.7]} 37... Rc2 {[%clk 0:00:12.1]} 38. Rxc2 {[%clk 0:00:01.9]} 38... Qxc2
{[%clk 0:00:12.9]} 39. f3 {[%clk 0:00:01.3]} 39... Ne3 {[%clk 0:00:12.4]} 40.
Qe1 {[%clk 0:00:01.5]} 40... Qxb3 {[%clk 0:00:12.9]} 41. Qc1 {[%clk 0:00:02.1]}
41... Qd3 {[%clk 0:00:11.9]} 42. Qc8+ {[%clk 0:00:01.8]} 42... Kh7 {[%clk
0:00:12.4]} 0-1